bitfinex-derivatives/quotes_ETHF0:USTF0_20251006
["timestamp","ask_amount","ask_price","bid_price","bid_amount"]
[1759764035903,0.40966815,4687.9,4687.6,0.422]
[1759764036106,0.623,4687.8,4687.6,0.422]
[1759764036304,0.408,4687.8,4687.6,0.422]
[1759764036500,0.215,4687.7,4687.5,3.6298]
[1759764036803,0.215,4687.6,4687.5,3.6298]
[1759764037108,0.40966815,4687.9,4687.5,3.2078]
[1759764037300,0.00166815,4687.9,4687.6,0.422]
[1759764037495,0.00166815,4687.9,4687.7,0.422]
[1759764037696,0.00166815,4687.9,4687.6,0.38383]
[1759764037899,0.00166815,4687.9,4687.7,0.422]
[1759764037900,0.408,4687.8,4687.7,0.422]
[1759764038096,0.408,4687.8,4687.5,3.2078]
[1759764038302,0.215,4687.7,4687.5,3.6298]
[1759764038506,0.00166815,4687.9,4687.5,3.6298]
[1759764038712,0.408,4687.7,4687.5,3.6298]
[1759764038902,0.408,4687.7,4687.5,3.2078]
[1759764039105,0.00166815,4687.9,4687.0,3.2078]
[1759764039300,0.408,4687.8,4687.0,3.7944]
[1759764039506,0.215,4687.7,4687.1,0.422]
[1759764039700,0.215,4687.6,4687.0,3.3724]
[1759764039906,0.40966815,4687.9,4687.1,0.422]
[1759764040101,2.73598911,4687.5,4687.0,3.2078]
[1759764040313,0.408,4687.4,4686.5,3.6298]
[1759764040506,3.2078,4687.2,4686.5,3.6298]
[1759764040705,0.408,4687.4,4686.5,3.7944]
[1759764040902,0.408,4687.4,4686.6,0.422]
[1759764041102,0.215,4687.3,4686.6,0.422]
[1759764041302,3.2078,4687.6,4686.6,0.422]
[1759764041503,0.215,4687.5,4686.9,0.422]
[1759764041703,0.3858,4687.5,4686.5,3.3724]
[1759764041906,3.2078,4687.3,4686.5,3.3724]
[1759764042205,0.408,4687.2,4686.5,3.2078]
[1759764042998,3.2078,4687.3,4686.5,3.2078]
[1759764043199,0.408,4687.2,4686.4,0.422]
[1759764043409,0.1708,4687.0,4686.0,3.3759]
[1759764043711,0.5788,4686.5,4685.5,3.3724]
[1759764043911,0.408,4686.0,4685.5,3.2078]
[1759764044106,0.215,4685.9,4685.5,3.2078]
[1759764044312,0.408,4685.8,4685.0,3.3724]
[1759764044607,0.622,4685.7,4684.9,0.422]
[1759764044910,0.1708,4685.5,4684.3,0.422]
[1759764045112,0.1708,4685.0,4684.0,3.2078]
[1759764045313,0.408,4684.8,4684.0,3.2078]
[1759764045508,3.2078,4684.6,4683.8,0.422]
[1759764045909,3.20945876,4684.6,4683.8,0.4241182]
[1759764046219,3.18121032,4684.5,4683.8,0.4241182]
[1759764046506,3.35201032,4684.5,4683.8,0.4241182]
[1759764046714,0.214,4684.4,4684.0,3.2078]
[1759764046910,0.214,4684.3,4684.1,0.422]
[1759764047108,0.00165876,4684.6,4684.0,3.3724]
[1759764047308,0.214,4684.5,4684.1,0.422]
[1759764047609,0.00165876,4684.6,4684.1,0.422]
[1759764047816,0.214,4684.4,4684.1,0.422]
[1759764048013,0.00165876,4684.6,4684.2,0.4297]
[1759764048216,0.214,4684.3,4684.2,0.4297]
[1759764048714,0.00165876,4684.6,4684.0,3.3724]
[1759764049106,0.214,4684.5,4684.0,3.75652]
[1759764049313,0.00165876,4684.6,4684.1,0.4297]
[1759764049616,0.00165876,4684.6,4684.0,3.3724]
[1759764049617,0.00165876,4684.6,4684.5,3.8094]
[1759764049913,0.21565876,4684.6,4684.5,3.8094]
[1759764050109,0.21565876,4684.6,4684.5,0.6016]
[1759764050110,0.00165876,4684.6,4684.5,0.6016]
[1759764050315,0.00165876,4684.6,4684.5,3.8094]
[1759764050710,0.1625,4684.5,4683.9,0.4297]
[1759764050915,0.4391,4684.4,4683.8,0.0021182]
[1759764051112,0.4391,4684.2,4683.8,0.0021182]
[1759764051712,0.00165876,4684.6,4684.0,0.1719]
[1759764051913,0.00165876,4684.6,4684.5,0.1719]
[1759764052115,0.00165876,4684.6,4684.5,0.6016]
[1759764052311,0.21665876,4684.6,4684.5,0.4297]
[1759764052510,0.00165876,4684.6,4684.5,0.6016]
[1759764054213,0.00165876,4684.6,4684.5,0.4297]
[1759764054516,0.44075876,4684.6,4684.5,0.4297]
[1759764055117,0.00165876,4684.6,4684.5,0.4297]
[1759764055323,0.00165876,4684.6,4684.5,0.6016]
[1759764055614,3.2078,4685.2,4684.5,0.1719]
[1759764055811,0.4391,4687.1,4686.0,0.38396]
[1759764056011,0.1625,4688.0,4686.7,0.4297]
[1759764056012,0.4391,4687.6,4686.7,0.4297]
[1759764056209,3.4228,4687.5,4686.7,0.4297]
[1759764056415,0.4391,4687.4,4686.3,3.2078]
[1759764056614,0.44158915,4687.4,4686.3,3.59173]
[1759764056915,0.44158915,4687.4,4686.5,0.1719]
[1759764057118,0.215,4687.3,4686.4,0.4297]
[1759764057423,3.2078,4687.0,4686.4,0.4297]
[1759764057718,3.2078,4687.0,4686.3,0.4297]
[1759764057913,0.215,4686.9,4686.3,0.4297]
[1759764058317,0.4391,4687.2,4686.3,0.81364]
[1759764058615,3.2078,4686.8,4686.4,0.4297]
[1759764058821,0.6541,4686.7,4686.1,0.4297]
[1759764059220,0.215,4686.6,4685.9,0.4297]
[1759764059517,0.4391,4686.7,4685.9,0.4297]
[1759764059820,0.4391,4686.6,4686.0,0.1719]
[1759764060019,0.215,4686.5,4686.1,0.4297]
[1759764060219,0.4391,4686.9,4686.1,0.81365]
[1759764060416,0.4391,4687.3,4686.4,0.4297]
[1759764060720,3.15815016,4687.3,4686.5,0.1719]
[1759764060919,0.00248915,4687.4,4687.1,0.4297]
[1759764061119,0.00248915,4687.4,4687.3,0.4297]
[1759764062309,0.00248915,4687.4,4687.2,0.4297]
[1759764062517,0.44158915,4687.4,4687.2,0.4297]
[1759764062818,0.44158915,4687.4,4687.1,0.00251141]
[1759764062819,0.4391,4687.2,4687.1,0.00251141]
[1759764063216,5.4391,4687.2,4687.1,0.00251141]
[1759764063519,0.4391,4687.1,4686.4,3.2078]
[1759764063726,0.215,4687.0,4686.4,3.2078]
[1759764063922,0.215,4687.0,4686.4,3.6375]
[1759764064216,0.215,4686.9,4686.5,0.4297]
[1759764064424,0.4391,4686.9,4686.5,0.00273357]
[1759764064617,0.4391,4686.9,4686.6,0.4297]
[1759764064813,3.2078,4687.3,4686.6,0.4297]
[1759764065013,0.00248915,4687.4,4687.3,0.4297]
[1759764066627,0.00248915,4687.4,4687.3,5.4297]
[1759764067714,0.4391,4688.8,4687.3,6.60435]
[1759764067915,0.4391,4689.4,4688.5,0.1719]
[1759764068221,3.2603988,4689.4,4688.5,0.1719]
[1759764068417,0.215,4689.3,4688.5,0.1719]
[1759764068729,3.2603988,4689.2,4688.5,0.1719]
[1759764069224,0.215,4689.1,4688.5,0.1719]
[1759764069423,0.215,4689.1,4688.5,0.6016]
[1759764069724,0.215,4689.1,4688.5,0.4297]
[1759764069922,0.6016,4688.5,4687.7,3.6375]
[1759764070116,0.215,4688.4,4687.7,3.6375]
[1759764070318,3.00100171,4688.4,4687.7,3.6375]
[1759764070516,2.78600171,4688.4,4687.7,0.4297]
[1759764070718,0.4391,4688.3,4687.7,0.4297]
[1759764070921,0.4391,4688.3,4687.5,0.55574]
[1759764070922,0.215,4688.2,4687.6,0.4297]
[1759764071721,0.1625,4689.0,4687.8,0.38381]
[1759764071916,0.6541,4688.9,4688.1,0.4297]
[1759764072121,3.25912064,4688.9,4688.1,0.4297]
[1759764072424,3.2078,4688.6,4688.1,0.4297]
[1759764072628,3.25912064,4688.9,4688.0,0.1719]
[1759764072923,3.25912064,4688.9,4688.1,0.4297]
[1759764072924,3.03836512,4688.8,4688.1,0.4297]
[1759764073121,0.4391,4688.5,4688.1,0.4297]
[1759764073318,2.82336512,4688.8,4688.1,0.4297]
[1759764073516,0.6016,4689.0,4688.1,0.4297]
[1759764073722,0.215,4688.9,4688.1,0.4297]
[1759764074019,0.215,4688.9,4688.0,0.5557]
[1759764074020,0.4391,4689.0,4688.3,3.2078]
[1759764074217,33.294,4689.7,4689.0,0.1719]
[1759764074422,33.294,4689.7,4689.1,0.4297]
[1759764074423,0.215,4689.5,4689.1,0.4297]
[1759764074724,0.215,4689.5,4689.0,0.1719]
[1759764075023,0.215,4689.5,4689.1,0.4297]
[1759764075223,33.294,4689.7,4689.0,0.1719]
[1759764075224,0.215,4689.2,4689.0,0.1719]
[1759764075526,33.294,4689.7,4689.1,0.4297]
[1759764075724,0.215,4689.2,4689.1,0.4297]
[1759764076124,0.215,4689.2,4689.0,0.1719]
[1759764076321,0.215,4689.1,4689.0,0.4297]
[1759764076520,0.6541,4689.1,4689.0,0.4297]
[1759764076715,0.6541,4689.1,4688.8,3.2078]
[1759764076716,0.4391,4689.0,4688.8,3.6375]
[1759764076920,0.215,4688.9,4688.5,0.6016]
[1759764077124,0.4391,4689.1,4688.5,0.1719]
[1759764077317,0.4391,4689.1,4688.1,3.2078]
[1759764077318,0.215,4689.0,4688.1,3.6375]
[1759764077517,0.4391,4688.6,4687.6,3.6375]
[1759764077829,0.215,4688.5,4687.6,3.6375]
[1759764078127,0.4391,4688.6,4687.6,3.6375]
[1759764078323,0.1625,4689.0,4688.0,0.3838]
[1759764078523,0.3988,4688.8,4687.7,0.4276]
[1759764078727,0.3988,4688.6,4687.7,0.4276]
[1759764079323,0.215,4688.5,4687.7,0.4276]
[1759764079522,0.3753,4688.5,4687.7,0.4276]
[1759764080827,0.3988,4688.4,4688.0,0.3838]
[1759764081122,0.3988,4689.4,4688.7,0.4276]
[1759764081322,0.215,4689.2,4688.8,0.38373]
[1759764081530,0.215,4689.2,4688.6,4.01915]
[1759764081732,0.40083097,4689.3,4688.6,3.2078]
[1759764081917,0.00203097,4689.3,4689.2,0.4276]
[1759764082124,0.21703097,4689.3,4689.2,0.4276]
[1759764082318,0.00203097,4689.3,4689.2,0.4276]
[1759764082519,0.21703097,4689.3,4689.2,0.4276]
[1759764082825,0.00203097,4689.3,4689.2,8.6354]
[1759764083325,0.3988,4690.4,4690.0,0.1714]
[1759764083531,0.057,4690.3,4689.7,3.6354]
[1759764084229,0.05852411,4690.3,4689.7,3.63765924]
[1759764084620,0.05852411,4690.3,4689.7,3.21005924]
[1759764084824,0.215,4690.2,4690.0,0.1714]
[1759764085019,0.215,4690.2,4690.1,0.4276]
[1759764085226,0.00152411,4690.3,4690.1,0.4276]
[1759764085430,0.215,4690.2,4690.1,0.4276]
[1759764086020,0.215,4690.2,4689.8,0.4276]
[1759764086229,0.00152411,4690.3,4689.7,3.21005924]
[1759764086532,0.215,4690.2,4689.7,0.00225924]
[1759764086726,0.00152411,4690.3,4690.0,0.1714]
[1759764086925,0.00152411,4690.3,4690.2,3.6354]
[1759764087923,0.21652411,4690.3,4690.2,3.6354]
[1759764088119,0.00152411,4690.3,4690.2,3.6354]
[1759764088824,0.61532411,4690.3,4689.7,3.63765924]
[1759764089226,0.40032411,4690.3,4689.7,3.63765924]
[1759764089428,0.215,4690.2,4689.8,0.4276]
[1759764089630,0.3988,4690.1,4689.7,3.21005924]
[1759764089832,0.3988,4690.1,4689.7,0.00225924]
[1759764090026,0.3988,4690.2,4689.7,0.00225924]
[1759764090225,0.215,4690.1,4689.7,0.00225924]
[1759764090424,0.215,4690.1,4689.8,0.4276]
[1759764090425,0.3988,4690.0,4689.8,0.4276]
[1759764090624,0.3988,4690.0,4689.7,0.00225924]
[1759764090830,0.215,4690.1,4689.7,0.00225924]
[1759764091026,0.3988,4689.8,4689.7,0.00225924]
[1759764091235,2.73965209,4690.0,4689.7,0.00225924]
[1759764091431,0.00152411,4690.3,4689.8,0.4276]
[1759764091729,0.00152411,4690.3,4690.0,0.1714]
[1759764091931,0.215,4690.2,4690.1,0.4276]
[1759764092131,0.00152411,4690.3,4690.1,0.4276]
[1759764092325,0.215,4690.2,4690.1,0.4276]
[1759764093124,0.00152411,4690.3,4689.8,0.4276]
[1759764093332,0.00152411,4690.3,4690.2,3.6354]
[1759764095533,0.00152411,4690.3,4690.2,0.4276]
[1759764095732,0.40652411,4690.3,4689.7,2.80905924]
[1759764096432,0.405,4690.2,4689.2,3.2078]
[1759764096631,0.1585,4689.5,4689.2,3.2078]
[1759764096842,0.405,4689.3,4689.2,3.20930113]
[1759764097031,0.215,4689.4,4689.2,3.20930113]
[1759764097233,0.405,4689.3,4689.2,0.00150113]
[1759764097833,0.62,4689.3,4689.2,0.00150113]
[1759764098533,0.405,4689.2,4687.7,3.2078]
[1759764098742,3.3663,4689.0,4687.7,3.6376]
[1759764099126,0.405,4688.8,4687.7,3.6376]
[1759764099333,0.405,4688.6,4687.7,3.6376]
[1759764099638,0.1585,4688.5,4687.7,3.64016973]
[1759764099830,0.405,4689.6,4688.5,0.38376]
[1759764100036,3.8278,4689.4,4688.3,0.4298]
[1759764100235,3.8278,4689.4,4688.4,0.38377]
[1759764100434,3.8278,4689.4,4687.7,0.43236973]
[1759764100435,3.2078,4688.9,4687.7,0.43236973]
[1759764100634,0.405,4688.2,4687.7,0.00256973]
[1759764100838,3.2078,4688.3,4687.7,0.00256973]
[1759764100839,0.405,4687.9,4687.7,0.00256973]
[1759764101140,3.2078,4688.3,4687.8,0.4298]
[1759764101338,0.405,4688.1,4687.7,0.00256973]
[1759764101640,0.62,4688.0,4687.7,0.43236973]
[1759764101837,0.62,4688.0,4687.7,0.00256973]
[1759764101838,0.405,4687.9,4687.7,0.00256973]
[1759764102028,0.3735,4688.0,4687.7,0.00256973]
[1759764102435,0.405,4687.9,4687.7,0.00256973]
[1759764102933,0.215,4687.8,4687.7,0.43236973]
[1759764103134,0.405,4687.9,4687.7,0.43236973]
[1759764103537,0.215,4687.8,4687.7,0.43236973]
[1759764103736,3.2078,4688.3,4687.7,0.43236973]
[1759764103937,0.405,4688.1,4687.7,0.43236973]
[1759764104139,0.1585,4688.5,4687.7,0.00256973]
[1759764104340,0.405,4688.3,4687.7,0.00256973]
[1759764104638,0.405,4688.8,4688.2,0.81358]
[1759764104836,0.405,4688.8,4688.3,0.4298]
[1759764104837,0.215,4688.7,4688.3,0.4298]
[1759764105137,0.405,4688.9,4688.1,4.02139]
[1759764105335,0.215,4688.8,4688.1,4.02139]
[1759764105541,3.3663,4689.5,4688.2,0.4298]
[1759764105542,0.405,4689.4,4688.2,0.4298]
[1759764105736,0.215,4689.3,4688.1,3.2078]
[1759764105942,3.3663,4689.0,4688.1,3.2078]
[1759764106139,0.405,4688.9,4687.8,0.38381]
[1759764106543,0.215,4688.8,4687.8,0.38381]
[1759764106744,0.405,4688.7,4687.9,0.38381]
[1759764106943,0.405,4688.7,4687.7,0.38638973]
[1759764107147,0.405,4688.7,4687.8,0.38381]
[1759764107538,0.405,4688.7,4687.7,0.00256973]
[1759764107740,3.3663,4689.0,4688.1,3.2078]
[1759764107934,0.4287,4689.2,4688.6,3.99795]
[1759764108138,0.1585,4689.5,4689.1,0.4064]
[1759764108139,0.4287,4689.4,4689.1,0.4064]
[1759764108346,0.215,4689.3,4689.0,0.38372]
[1759764108643,3.3663,4690.0,4689.2,3.2078]
[1759764108644,0.4287,4689.9,4689.2,3.2078]
[1759764108943,0.6437,4689.8,4689.5,0.4064]
[1759764109141,0.6437,4689.8,4689.4,0.38368]
[1759764109142,0.215,4689.7,4689.4,0.38368]
[1759764109445,0.1585,4690.0,4689.2,3.2078]
[1759764109647,0.6437,4689.9,4689.2,3.6142]
[1759764109845,0.215,4689.8,4689.2,3.6142]
[1759764110047,0.1585,4690.0,4689.2,3.6142]
[1759764110342,0.215,4689.7,4689.2,3.6142]
[1759764110546,0.215,4689.7,4688.5,0.1593]
[1759764110547,0.1578,4689.5,4688.7,3.2078]
[1759764110740,0.4287,4689.4,4688.7,3.2078]
[1759764110935,0.1578,4689.0,4688.7,3.2078]
[1759764111346,0.4287,4688.9,4688.7,3.2078]
[1759764111846,0.1578,4689.0,4688.7,3.2078]
[1759764112041,0.1578,4689.0,4688.2,3.2078]
[1759764112247,0.4287,4688.9,4688.2,3.2078]
[1759764112946,0.1578,4688.5,4687.7,3.21036973]
[1759764113246,0.4287,4688.3,4687.7,3.21036973]
[1759764113436,0.4287,4688.4,4687.7,3.21036973]
[1759764113639,0.1578,4688.5,4687.8,0.4064]
[1759764113640,0.215,4688.3,4687.8,0.4064]
[1759764113840,0.4287,4688.2,4687.8,0.4064]
[1759764114441,0.215,4688.3,4687.7,3.21036973]
[1759764114942,0.215,4688.2,4687.7,3.59418973]
[1759764115148,0.6437,4688.2,4687.8,0.4064]
[1759764115352,0.4287,4688.1,4687.7,3.59418973]
[1759764115545,0.215,4688.2,4687.7,3.21036973]
[1759764116048,0.1578,4688.0,4687.7,3.21036973]
[1759764116253,0.4287,4687.9,4687.7,3.21036973]
[1759764116547,0.4287,4687.9,4687.2,3.18543256]
[1759764116748,0.1578,4687.5,4687.2,3.18543256]
[1759764116948,0.215,4687.4,4686.7,3.2078]
[1759764117154,0.1578,4687.0,4686.7,3.2078]
[1759764117351,0.5865,4687.0,4686.7,3.2078]
[1759764117550,0.4287,4686.9,4686.7,3.6142]
[1759764117848,0.1578,4689.0,4687.1,0.4064]
[1759764118049,0.215,4688.9,4688.2,0.4064]
[1759764118350,0.215,4688.9,4687.9,0.4064]
[1759764118351,3.6365,4688.8,4687.9,0.4064]
[1759764118656,3.6365,4688.8,4687.9,0.7902]
[1759764118846,3.6365,4688.8,4687.6,3.2078]
[1759764118847,0.4287,4688.7,4687.6,3.2078]
[1759764119049,0.215,4688.6,4688.4,0.79016]
[1759764119354,0.215,4688.6,4687.9,0.38381]
[1759764119549,0.4287,4688.4,4687.5,0.38384]
[1759764119852,3.2078,4688.1,4687.4,0.38385]
[1759764120050,3.2078,4688.1,4687.4,0.4064]
[1759764120254,0.215,4688.3,4687.9,0.38381]
[1759764120552,0.215,4688.3,4688.0,0.38379]
[1759764120851,0.0017392,4688.8,4688.0,0.4933]
[1759764121053,0.2167392,4688.8,4688.7,3.6142]
[1759764121752,0.0017392,4688.8,4688.7,3.99794]
[1759764122148,0.0017392,4688.8,4688.7,3.6142]
[1759764122849,0.0017392,4688.8,4688.7,8.6142]
[1759764123759,0.4287,4690.0,4688.7,8.6142]
[1759764123948,0.5507,4690.0,4689.6,0.38367]
[1759764124255,0.215,4690.1,4689.6,0.79007]
[1759764124559,0.4287,4690.4,4690.0,0.4064]
[1759764124849,0.215,4690.3,4690.1,0.4064]
[1759764125051,0.64622464,4690.4,4690.1,0.4064]
[1759764125254,0.21752464,4690.4,4690.1,0.38363]
[1759764125453,0.00252464,4690.4,4690.3,0.4064]
[1759764126358,0.4287,4691.8,4690.5,0.1568]
[1759764126558,1.53648974,4692.3,4691.5,0.0857]
[1759764126851,3.2078,4692.8,4691.9,3.2078]
[1759764127154,0.6437,4692.7,4692.0,0.38347]
[1759764127352,0.00196078,4692.7,4692.1,0.4064]
[1759764127553,0.00196078,4692.7,4692.6,0.78982]
[1759764128056,1.53648974,4694.8,4692.6,0.78982]
[1759764128057,0.4287,4694.3,4693.1,0.38338]
[1759764128359,0.4287,4694.3,4693.6,3.6097]
[1759764128558,3.2078,4695.7,4694.5,0.1568]
[1759764128768,0.4287,4695.6,4694.7,3.2078]
[1759764129055,0.4287,4695.4,4694.7,3.2093004]
[1759764129357,0.00271687,4695.6,4695.5,0.4019]
[1759764129947,0.4287,4695.5,4694.9,0.4019]
[1759764130153,0.4287,4695.5,4694.7,0.0015004]
[1759764130154,0.1578,4695.0,4694.7,0.0015004]
[1759764130355,2.80392166,4695.4,4694.8,0.29307837]
[1759764130553,0.5865,4695.5,4694.7,0.0015004]
[1759764130554,0.3728,4695.5,4694.9,0.29307837]
[1759764130852,0.4287,4695.1,4695.0,0.29307837]
[1759764131156,3.35476211,4695.1,4695.0,0.29307837]
[1759764131351,0.1578,4695.0,4694.7,0.0015004]
[1759764131557,0.4287,4694.9,4694.7,0.0015004]
[1759764131752,0.4287,4694.8,4694.7,0.0015004]
[1759764131955,0.1578,4695.5,4694.7,0.0015004]
[1759764131956,0.4287,4695.4,4694.7,0.0015004]
[1759764132154,0.215,4695.3,4694.7,0.0015004]
[1759764132452,0.1578,4695.0,4694.7,0.0015004]
[1759764132657,0.4287,4694.8,4694.7,0.0015004]
[1759764133252,5.6437,4694.8,4694.7,0.0015004]
[1759764133456,0.4287,4693.9,4693.2,3.2078]
[1759764133653,0.6437,4693.9,4693.2,3.2078]
[1759764133849,0.1578,4694.0,4693.2,3.2078]
[1759764134157,0.4287,4693.9,4693.3,0.4019]
[1759764134360,0.4287,4694.4,4693.7,3.2078]
[1759764134559,0.4287,4693.8,4693.3,0.00155682]
[1759764134759,0.215,4693.8,4693.3,0.00155682]
[1759764134952,0.4287,4693.6,4693.3,0.00155682]
[1759764135159,0.1578,4693.5,4693.3,0.00155682]
[1759764135361,0.4287,4693.4,4693.3,0.00155682]
[1759764135856,0.6447,4693.4,4693.3,0.00155682]
[1759764136270,5.6447,4693.4,4693.3,0.00155682]
[1759764136661,5.4287,4693.4,4693.3,0.00155682]
[1759764136957,5.6447,4693.4,4693.3,0.00155682]
[1759764137157,0.4287,4693.3,4692.2,3.2078]
[1759764137357,0.4287,4692.8,4692.2,3.2078]
[1759764137755,0.4287,4692.8,4691.6,0.4505]
[1759764137756,3.2078,4692.9,4691.6,0.3835]
[1759764137963,0.6206,4692.8,4691.6,0.3835]
[1759764138266,0.4056,4692.6,4692.3,0.3881]
[1759764138558,0.1578,4693.0,4692.3,0.3881]
[1759764138559,0.4056,4693.2,4692.3,0.3881]
[1759764138856,3.6134,4693.7,4692.9,0.38339]
[1759764139057,3.6134,4693.7,4693.0,0.38339]
[1759764139255,3.6134,4693.7,4692.8,0.3881]
[1759764139562,0.4056,4693.7,4693.4,0.3881]
[1759764139963,0.4056,4693.8,4693.2,3.2078]
[1759764140264,0.4056,4693.9,4693.2,3.59117]
[1759764140459,0.5634,4694.5,4693.7,3.2078]
[1759764140660,0.216,4694.6,4694.2,3.2078]
[1759764140964,3.8294,4694.8,4694.2,3.2078]
[1759764141353,3.2078,4695.3,4694.4,0.38327]
[1759764141559,3.2078,4695.3,4694.7,0.38325]
[1759764141766,3.4238,4695.3,4694.5,0.3881]
[1759764141961,3.2078,4695.3,4694.5,0.3881]
[1759764142160,0.4056,4695.4,4695.0,0.3881]
[1759764142355,0.21871687,4695.6,4695.0,0.00186248]
[1759764142561,0.4056,4695.4,4695.0,0.00186248]
[1759764142761,0.21871687,4695.6,4695.0,0.00186248]
[1759764142957,0.216,4695.4,4695.0,0.00186248]
[1759764143154,0.00271687,4695.6,4695.0,0.00186248]
[1759764143368,0.6216,4695.4,4695.0,0.00186248]
[1759764143561,3.6134,4695.1,4695.0,0.00186248]
[1759764143861,0.4056,4694.4,4693.6,3.2078]
[1759764144067,0.216,4694.3,4693.6,3.2078]
[1759764144258,0.1689,4695.0,4693.1,3.4238]
[1759764144459,0.00271687,4695.6,4695.5,0.4051]
[1759764144662,0.00271687,4695.6,4694.8,3.6129]
[1759764144968,0.00271687,4695.6,4695.5,0.5659]
[1759764145359,0.003,4696.5,4695.6,0.4051]
[1759764145560,0.1689,4698.0,4696.4,3.2078]
[1759764145769,2.85978832,4697.4,4697.0,3.2078]
[1759764146065,0.216,4697.5,4697.0,3.2078]
[1759764146268,0.216,4697.5,4696.1,3.2078]
[1759764146269,3.6134,4697.2,4696.1,3.2078]
[1759764146464,0.1689,4697.0,4696.6,3.2078]
[1759764146663,0.17119186,4697.5,4696.7,0.4051]
[1759764146664,2.79234045,4697.1,4696.7,0.4051]
[1759764146857,0.216,4697.3,4696.7,0.4051]
[1759764147063,0.00229186,4697.5,4697.2,3.2078]
[1759764147363,0.4056,4697.3,4697.2,3.2078]
[1759764147561,7.93556359,4697.4,4696.5,3.2078]
[1759764147764,0.1689,4697.0,4696.5,3.2078]
[1759764148156,3.2078,4696.6,4695.7,3.2078]
[1759764148360,0.3849,4696.5,4695.7,3.2078]
[1759764148571,0.3849,4696.5,4695.2,3.2078]
[1759764148572,3.2078,4695.9,4695.2,3.2078]
[1759764148763,0.4056,4695.8,4695.2,3.2078]
[1759764148963,2.72334851,4695.8,4695.7,3.2078]
[1759764149159,0.5745,4696.5,4695.7,3.6129]
[1759764149363,0.5745,4696.5,4696.4,3.2078]
[1759764149570,0.7315,4696.5,4695.9,3.2078]
[1759764149771,0.3259,4696.5,4695.9,3.2078]
[1759764149964,0.4056,4696.2,4695.4,3.2078]
[1759764150667,3.2078,4696.3,4695.4,3.2078]
[1759764150868,2.96300873,4696.1,4695.4,3.2078]
[1759764151065,0.216,4696.0,4695.4,3.2078]
[1759764151271,0.216,4696.0,4695.4,3.6129]
[1759764151670,0.4056,4696.2,4695.4,3.6129]
[1759764151865,0.216,4696.1,4695.5,0.1608]
[1759764152271,0.4056,4696.2,4695.5,0.1608]
[1759764152461,0.216,4696.1,4695.5,0.1608]
[1759764152662,0.00229186,4697.5,4696.1,0.4051]
[1759764152870,0.4056,4697.3,4696.2,3.2078]
[1759764153066,0.4056,4697.0,4696.2,3.2078]
[1759764153270,0.216,4696.9,4696.2,3.2078]
[1759764153574,3.02149358,4696.9,4696.2,3.2078]
[1759764153771,0.4056,4696.8,4695.9,0.4051]
[1759764154071,0.1689,4696.5,4695.7,3.2078]
[1759764154268,0.6216,4696.4,4695.8,0.4051]
[1759764154466,3.8294,4696.4,4695.8,0.4051]
[1759764154864,3.8294,4696.4,4695.5,0.1608]
[1759764154865,8.4238,4696.4,4695.2,3.2078]
[1759764155072,2.81065056,4696.3,4695.2,3.2078]
[1759764155264,0.4013,4696.1,4695.2,3.2078]
[1759764155469,0.1664,4696.0,4695.2,3.2078]
[1759764155768,0.4013,4695.6,4694.7,3.2078]
[1759764155972,3.2078,4695.7,4694.7,3.2078]
[1759764155973,0.4013,4695.4,4694.7,3.2078]
[1759764156275,0.4013,4695.2,4694.2,3.6275]
[1759764156468,0.4013,4695.2,4693.7,0.4197]
[1759764156469,0.4013,4694.9,4693.7,0.4197]
[1759764156670,0.4013,4694.4,4693.6,3.2078]
[1759764156869,0.4013,4694.2,4693.6,3.2078]
[1759764157177,0.4013,4694.0,4693.6,3.2078]
[1759764157674,0.4013,4693.8,4693.6,3.2095929]
[1759764157875,0.00250989,4694.0,4693.7,0.4197]
[1759764158070,0.15650989,4694.0,4693.7,0.4197]
[1759764158573,0.00250989,4694.0,4693.7,0.4197]
[1759764158782,0.00250989,4694.0,4693.9,0.4197]
[1759764163476,0.00250989,4694.0,4693.9,5.4197]
[1759764163875,0.00250989,4694.0,4693.9,0.4197]
[1759764164877,0.00250989,4694.0,4693.9,5.4197]
[1759764165475,0.059,4695.3,4694.0,1.12716]
[1759764165677,0.216,4695.3,4694.9,0.4197]
[1759764165876,0.4013,4695.2,4694.5,0.38327]
[1759764166078,0.216,4695.5,4694.9,3.2078]
[1759764166271,0.216,4695.4,4694.9,3.2078]
[1759764166478,0.2183061,4695.4,4694.9,3.2078]
[1759764166780,0.2183061,4695.4,4695.0,0.4197]
[1759764167076,0.4013,4695.2,4694.9,3.2078]
[1759764167276,0.4013,4695.2,4694.4,0.4197]
[1759764167980,0.5911,4695.0,4694.0,0.1689]
[1759764168278,3.2078,4694.8,4693.9,0.4351]
[1759764168483,0.42,4694.7,4693.9,0.4351]
[1759764168678,0.216,4694.6,4693.9,0.4351]
[1759764168977,3.6278,4694.3,4693.6,0.0017929]
[1759764169581,3.6278,4694.3,4693.7,0.4351]
[1759764169784,0.42,4695.0,4694.0,0.1619]
[1759764170079,0.216,4694.9,4694.1,0.4351]
[1759764170483,0.42,4694.8,4694.1,0.8184]
[1759764170679,0.42,4694.8,4694.2,0.4351]
[1759764171071,0.216,4694.9,4694.1,0.4351]
[1759764171072,2.75041501,4694.7,4694.1,0.4351]
[1759764171277,0.216,4694.6,4694.1,0.3833]
[1759764171476,0.216,4694.6,4694.1,0.4351]
[1759764171878,0.216,4694.6,4694.0,3.3697]
[1759764172076,0.42,4694.9,4694.1,0.4351]